fUST/lending_fUST_20240721
["ID","MTS","AMOUNT","RATE_DAILY","PERIOD"]
[332734483,1721494245731,-500.0,0.00013972,2]
[332734485,1721494245744,-500.0,0.00013972,2]
[332734488,1721494245754,-500.0,0.00013972,2]
[332734490,1721494245765,-492.93432717,0.00013972,2]
[332734492,1721494245775,-500.0,0.00013972,2]
[332734494,1721494245786,-500.0,0.00013972,2]
[332734496,1721494245795,-500.0,0.00013972,2]
[332734498,1721494245807,-1229.58,0.00013972,2]
[332734500,1721494245816,-500.0,0.00013972,2]
[332734502,1721494245826,-500.0,0.00013972,2]
[332734504,1721494245835,-500.0,0.00013972,2]
[332734506,1721494245846,-500.0,0.00013972,2]
[332734508,1721494245857,-518.45285291,0.00013972,2]
[332734510,1721494245868,-500.0,0.00013972,2]
[332734512,1721494245879,-500.0,0.00013972,2]
[332734514,1721494245889,-500.0,0.00013972,2]
[332734516,1721494245899,-615.93,0.00013972,2]
[332734518,1721494245910,-502.09315046,0.00013972,2]
[332734521,1721494245921,-500.0,0.00013972,2]
[332734523,1721494245932,-500.0,0.00013972,2]
[332734525,1721494245941,-500.0,0.00013972,2]
[332734527,1721494245956,-500.0,0.00013972,2]
[332734530,1721494245966,-500.0,0.00013972,2]
[332734533,1721494245976,-500.0,0.00013972,2]
[332734536,1721494245985,-500.0,0.00013972,2]
[332734539,1721494245998,-500.0,0.00013972,2]
[332734542,1721494246008,-513.24561122,0.00013972,2]
[332734545,1721494246020,-692.48,0.00013972,2]
[332734548,1721494246031,-500.0,0.00013972,2]
[332734551,1721494246052,-500.0,0.00013972,2]
[332734555,1721494246074,-500.0,0.00013972,2]
[332734559,1721494246095,-500.0,0.00013972,2]
[332734563,1721494246116,-562.63316697,0.00013972,2]
[332734566,1721494246139,-790.9,0.00013972,2]
[332734570,1721494246161,-500.0,0.00013972,2]
[332734574,1721494246184,-500.0,0.00013972,2]
[332734578,1721494246207,-500.0,0.00013972,2]
[332734582,1721494246228,-601.67470916,0.00013972,2]
[332734586,1721494246250,-561.16,0.00013972,2]
[332734590,1721494246270,-500.0,0.00013972,2]
[332734593,1721494246291,-811.13,0.00013972,2]
[332734597,1721494246306,-500.0,0.00013972,2]
[332734601,1721494246317,-500.0,0.00013972,2]
[332734603,1721494246326,-500.0,0.00013972,2]
[332734606,1721494246336,-500.0,0.00013972,2]
[332734610,1721494246346,-500.0,0.00013972,2]
[332734614,1721494246356,-500.0,0.00013972,2]
[332734618,1721494246366,-500.0,0.00013972,2]
[332734622,1721494246376,-500.0,0.00013972,2]
[332734626,1721494246385,-500.0,0.00013972,2]
[332734630,1721494246394,-560.73301691,0.00013972,2]
[332734634,1721494246404,-500.0,0.00013972,2]
[332734638,1721494246413,-500.0,0.00013972,2]
[332734642,1721494246423,-500.0,0.00013972,2]
[332734646,1721494246432,-608.63406425,0.00013972,2]
[332734650,1721494246441,-1029.51,0.00013972,2]
[332734654,1721494246451,-500.0,0.00013972,2]
[332734657,1721494246460,-795.5,0.00013972,2]
[332734660,1721494246470,-815.66,0.00013972,2]
[332734663,1721494246479,-500.0,0.00013972,2]
[332734666,1721494246490,-500.0,0.00013972,2]
[332734670,1721494246501,-1089.97,0.00013972,2]
[332734673,1721494246511,-500.0,0.00013972,2]
[332734676,1721494246523,-500.0,0.00013972,2]
[332734679,1721494246532,-500.0,0.00013972,2]
[332734713,1721494246686,-507.40824382,0.00013972,2]
[332734718,1721494246717,-500.0,0.00013972,2]
[332734721,1721494246727,-500.0,0.00013972,2]
[332734724,1721494246738,-2791.66,0.00013972,2]
[332734727,1721494246753,-1204.92,0.00013972,2]
[332734730,1721494246762,-558.22,0.00013972,2]
[332734733,1721494246772,-500.0,0.00013972,2]
[332734736,1721494246783,-500.0,0.00013972,2]
[332734739,1721494246792,-500.0,0.00013972,2]
[332734741,1721494246802,-500.0,0.00013972,2]
[332734744,1721494246811,-500.0,0.00013972,2]
[332734747,1721494246821,-500.0,0.00013972,2]
[332734751,1721494246831,-500.0,0.00013972,2]
[332734753,1721494246841,-421.88467126,0.00013972,2]
[332734756,1721494246850,-525.89,0.00013972,2]
[332734760,1721494246861,-500.0,0.00013972,2]
[332734763,1721494246870,-500.0,0.00013972,2]
[332734765,1721494246879,-500.0,0.00013972,2]
[332734769,1721494246890,-500.0,0.00013972,2]
[332734772,1721494246900,-274.77327132,0.00013972,2]
[332734775,1721494246910,-500.0,0.00013972,2]
[332734778,1721494246920,-1622.08,0.00013972,2]
[332734780,1721494246929,-500.0,0.00013972,2]
[332734783,1721494246939,-502.03335675,0.00013972,2]
[332734785,1721494246949,-500.0,0.00013972,2]
[332734787,1721494246962,-500.0,0.00013972,2]
[332734789,1721494246971,-171.17220993,0.00013972,2]
[332734792,1721494246980,-500.0,0.00013972,2]
[332734795,1721494246991,-886.05,0.00013972,2]
[332734798,1721494247001,-500.0,0.00013972,2]
[332734801,1721494247010,-764.72,0.00013972,2]
[332734804,1721494247019,-500.0,0.00013972,2]
[332734807,1721494247030,-701.32,0.00013972,2]
[332734810,1721494247039,-500.0,0.00013972,2]
[332734813,1721494247049,-500.0,0.00013972,2]
[332734816,1721494247059,-500.0,0.00013972,2]
[332734819,1721494247069,-500.0,0.00013972,2]
[332734822,1721494247079,-500.0,0.00013972,2]
[332734825,1721494247090,-500.0,0.00013972,2]
[332734828,1721494247099,-500.0,0.00013972,2]
[332734831,1721494247110,-500.0,0.00013972,2]
[332734834,1721494247120,-501.41673418,0.00013972,2]
[332734838,1721494247130,-1187.24,0.00013972,2]
[332734840,1721494247139,-661.97,0.00013972,2]
[332734844,1721494247150,-577.71,0.00013972,2]
[332734847,1721494247161,-500.0,0.00013972,2]
[332734849,1721494247172,-500.0,0.00013972,2]
[332734851,1721494247182,-500.0,0.00013972,2]
[332734853,1721494247192,-500.0,0.00013972,2]
[332734855,1721494247201,-500.0,0.00013972,2]
[332734857,1721494247212,-500.0,0.00013972,2]
[332734859,1721494247225,-500.0,0.00013972,2]
[332734861,1721494247235,-551.83,0.00013972,2]
[332734863,1721494247246,-2565.8,0.00013972,2]
[332734865,1721494247255,-500.0,0.00013972,2]
[332734867,1721494247264,-500.0,0.00013972,2]
[332734869,1721494247274,-583.33475046,0.00013972,2]
[332734871,1721494247284,-500.0,0.00013972,2]
[332734873,1721494247293,-1919.69,0.00013972,2]
[332734875,1721494247303,-1509.28,0.00013972,2]
[332734877,1721494247312,-582.24,0.00013972,2]
[332734879,1721494247322,-530.0,0.00013972,2]
[332734881,1721494247332,-536.52,0.00013972,2]
[332734883,1721494247341,-500.0,0.00013972,2]
[332734885,1721494247351,-2640.16,0.00013972,2]
[332734887,1721494247361,-1107.01,0.00013972,2]
[332734889,1721494247371,-500.0,0.00013972,2]
[332734891,1721494247381,-500.0,0.00013972,2]
[332734893,1721494247391,-500.0,0.00013972,2]
[332734895,1721494247402,-3219.98,0.00013972,2]
[332734898,1721494247412,-500.0,0.00013972,2]
[332734899,1721494247421,-701.35,0.00013972,2]
[332734901,1721494247430,-1051.29,0.00013972,2]
[332734903,1721494247440,-500.0,0.00013972,2]
[332734905,1721494247449,-500.0,0.00013972,2]
[332734907,1721494247459,-660.13,0.00013972,2]
[332734909,1721494247469,-500.0,0.00013972,2]
[332734912,1721494247480,-881.03,0.00013972,2]
[332734914,1721494247491,-500.0,0.00013972,2]
[332734916,1721494247502,-551.41,0.00013972,2]
[332734918,1721494247512,-500.0,0.00013972,2]
[332734920,1721494247522,-1009.24,0.00013972,2]
[332734922,1721494247531,-500.0,0.00013972,2]
[332734924,1721494247541,-500.0,0.00013972,2]
[332734926,1721494247551,-510.14,0.00013972,2]
[332734928,1721494247561,-679.02,0.00013972,2]
[332734930,1721494247572,-790.47,0.00013972,2]
[332734932,1721494247581,-500.0,0.00013972,2]
[332734934,1721494247592,-504.31,0.00013972,2]
[332734936,1721494247602,-500.0,0.00013972,2]
[332734938,1721494247612,-500.0,0.00013972,2]
[332734940,1721494247622,-500.0,0.00013972,2]
[332734942,1721494247633,-500.0,0.00013972,2]
[332734944,1721494247643,-500.0,0.00013972,2]
[332734946,1721494247653,-1121.43,0.00013972,2]
[332734948,1721494247663,-500.0,0.00013972,2]
[332734950,1721494247673,-1524.91,0.00013972,2]
[332734952,1721494247683,-500.0,0.00013972,2]
[332734954,1721494247693,-500.0,0.00013972,2]
[332734956,1721494247703,-500.0,0.00013972,2]
[332734958,1721494247714,-683.79,0.00013972,2]
[332734960,1721494247723,-500.0,0.00013972,2]
[332734963,1721494247732,-1899.42,0.00013972,2]
[332734965,1721494247744,-1701.71,0.00013972,2]
[332734967,1721494247755,-500.0,0.00013972,2]
[332734969,1721494247765,-4122.73,0.00013972,2]
[332734971,1721494247775,-500.0,0.00013972,2]
[332734973,1721494247785,-500.0,0.00013972,2]
[332734975,1721494247796,-733.3,0.00013972,2]
[332734977,1721494247807,-1102.1,0.00013972,2]
[332734979,1721494247816,-500.0,0.00013972,2]
[332734981,1721494247826,-500.0,0.00013972,2]
[332734983,1721494247836,-1410.56,0.00013972,2]
[332734985,1721494247846,-500.0,0.00013972,2]
[332734987,1721494247856,-500.0,0.00013972,2]
[332734989,1721494247866,-1769.28,0.00013972,2]
[332734991,1721494247876,-501.43123297,0.00013972,2]
[332734993,1721494247886,-500.0,0.00013972,2]
[332734995,1721494247895,-500.0,0.00013972,2]
[332734997,1721494247905,-500.0,0.00013972,2]
[332734999,1721494247914,-500.0,0.00013972,2]
[332735001,1721494247925,-954.37,0.00013972,2]
[332735003,1721494247937,-755.78,0.00013972,2]
[332735006,1721494247949,-946.79,0.00013972,2]
[332735008,1721494247965,-500.0,0.00013972,2]
[332735010,1721494247975,-776.56,0.00013972,2]
[332735012,1721494247984,-500.0,0.00013972,2]
[332735014,1721494247995,-593.53,0.00013972,2]
[332735016,1721494248007,-1963.8,0.00013972,2]
[332735018,1721494248017,-500.0,0.00013972,2]
[332735020,1721494248027,-500.0,0.00013972,2]
[332735022,1721494248037,-1815.85,0.00013972,2]
[332735023,1721494248046,-541.41,0.00013972,2]
[332735024,1721494248056,-526.48973884,0.00013972,2]
[332735025,1721494248066,-500.0,0.00013972,2]
[332735026,1721494248076,-500.0,0.00013972,2]
[332735027,1721494248085,-4000.88,0.00013972,2]
[332735028,1721494248094,-500.0,0.00013972,2]
[332735029,1721494248104,-500.0,0.00013972,2]
[332735030,1721494248113,-500.0,0.00013972,2]
[332735031,1721494248123,-824.6,0.00013972,2]
[332735032,1721494248132,-938.13,0.00013972,2]
[332735034,1721494248142,-913.83,0.00013972,2]
[332735035,1721494248151,-500.0,0.00013972,2]
[332735037,1721494248161,-2853.43,0.00013972,2]
[332735039,1721494248170,-500.0,0.00013972,2]
[332735041,1721494248180,-500.0,0.00013972,2]
[332735043,1721494248190,-500.0,0.00013972,2]
[332735045,1721494248199,-1811.71,0.00013972,2]
[332735047,1721494248209,-500.0,0.00013972,2]
[332735049,1721494248219,-789.42,0.00013972,2]
[332735051,1721494248228,-642.28,0.00013972,2]
[332735054,1721494248238,-1879.32,0.00013972,2]
[332735056,1721494248249,-500.0,0.00013972,2]
[332735058,1721494248259,-500.4,0.00013972,2]
[332735060,1721494248268,-500.0,0.00013972,2]
[332735062,1721494248278,-661.04,0.00013972,2]
[332735064,1721494248288,-758.51,0.00013972,2]
[332735066,1721494248297,-2221.42,0.00013972,2]
[332735068,1721494248307,-500.0,0.00013972,2]
[332735070,1721494248316,-3278.44,0.00013972,2]
[332735072,1721494248326,-500.0,0.00013972,2]
[332735074,1721494248336,-855.03,0.00013972,2]
[332735076,1721494248347,-521.45625736,0.00013972,2]
[332735078,1721494248357,-500.0,0.00013972,2]
[332735080,1721494248367,-1308.23,0.00013972,2]
[332735082,1721494248377,-1377.85,0.00013972,2]
[332735084,1721494248387,-1513.14,0.00013972,2]
[332735086,1721494248397,-555.93805008,0.00013972,2]
[332735088,1721494248407,-500.0,0.00013972,2]
[332735090,1721494248416,-954.12,0.00013972,2]
[332735092,1721494248426,-500.0,0.00013972,2]
[332735094,1721494248436,-500.0,0.00013972,2]
[332735096,1721494248446,-1723.65,0.00013972,2]
[332735098,1721494248457,-561.47,0.00013972,2]
[332735100,1721494248467,-1831.68,0.00013972,2]
[332735102,1721494248477,-500.0,0.00013972,2]
[332735104,1721494248487,-155.98610733,0.00013972,2]
[332735106,1721494248498,-10777.25,0.00013972,2]
[332735108,1721494248508,-500.0,0.00013972,2]
[332735110,1721494248518,-500.0,0.00013972,2]
[332735112,1721494248528,-541.54,0.00013972,2]
[332735114,1721494248538,-835.58,0.00013972,2]
[332735116,1721494248548,-36716.64,0.00013972,2]
[332735118,1721494248558,-500.0,0.00013972,2]
[332735120,1721494248568,-545.40045561,0.00013972,2]
[332735122,1721494248577,-1451.7,0.00013972,2]
[332735124,1721494248588,-1044.13,0.00013972,2]
[332735126,1721494248598,-500.0,0.00013972,2]
[332735128,1721494248608,-335.80325809,0.00013972,2]
[332735130,1721494248619,-1193.91,0.00013972,2]
[332735132,1721494248629,-500.0,0.00013972,2]
[332735134,1721494248639,-659.93,0.00013972,2]
[332735136,1721494248649,-500.0,0.00013972,2]
[332735138,1721494248659,-500.0,0.00013972,2]
[332735140,1721494248670,-2003.43,0.00013972,2]
[332735142,1721494248680,-1547.75,0.00013972,2]
[332735144,1721494248690,-500.0,0.00013972,2]
[332735146,1721494248700,-2712.96,0.00013972,2]
[332735148,1721494248710,-500.0,0.00013972,2]
[332735150,1721494248721,-500.0,0.00013972,2]
[332735152,1721494248731,-8980.61,0.00013972,2]
[332735155,1721494248744,-500.0,0.00013972,2]
[332735157,1721494248754,-500.0,0.00013972,2]
[332735159,1721494248763,-8902.7,0.00013972,2]
[332735161,1721494248773,-583.49,0.00013972,2]
[332735163,1721494248783,-500.0,0.00013972,2]
[332735165,1721494248794,-500.0,0.00013972,2]
[332735167,1721494248804,-500.0,0.00013972,2]
[332735169,1721494248813,-831.74,0.00013972,2]
[332735171,1721494248824,-500.0,0.00013972,2]
[332735173,1721494248835,-500.0,0.00013972,2]
[332735175,1721494248846,-500.0,0.00013972,2]
[332735177,1721494248856,-500.0,0.00013972,2]
[332735179,1721494248866,-500.0,0.00013972,2]
[332735181,1721494248876,-500.0,0.00013972,2]
[332735183,1721494248887,-2682.33,0.00013972,2]
[332735186,1721494248898,-500.0,0.00013972,2]
[332735188,1721494248908,-500.0,0.00013972,2]
[332735190,1721494248918,-500.0,0.00013972,2]
[332735192,1721494248928,-631.9,0.00013972,2]
[332735194,1721494248939,-1096.08,0.00013972,2]
[332735196,1721494248950,-521.4783236,0.00013972,2]
[332735198,1721494248963,-500.0,0.00013972,2]
[332735200,1721494248973,-559.03,0.00013972,2]
[332735202,1721494248983,-3351.62,0.00013972,2]
[332735204,1721494248996,-8586.43,0.00013972,2]
[332735206,1721494249008,-696.73,0.00013972,2]
[332735208,1721494249019,-500.0,0.00013972,2]
[332735210,1721494249030,-500.0,0.00013972,2]
[332735212,1721494249041,-500.0,0.00013972,2]
[332735214,1721494249050,-4600.11,0.00013972,2]
[332735216,1721494249060,-1045.37,0.00013972,2]
[332735218,1721494249071,-500.0,0.00013972,2]
[332735219,1721494249080,-500.0,0.00013972,2]
[332735221,1721494249090,-500.0,0.00013972,2]
[332735223,1721494249099,-1198.98,0.00013972,2]
[332735225,1721494249110,-2224.97,0.00013972,2]
[332735227,1721494249121,-2628.38,0.00013972,2]
[332735229,1721494249131,-2029.01,0.00013972,2]
[332735231,1721494249142,-500.0,0.00013972,2]
[332735233,1721494249151,-1691.35,0.00013972,2]
[332735240,1721494249209,-607.53,0.00013972,2]
[332735242,1721494249219,-2190.2,0.00013972,2]
[332735244,1721494249229,-500.0,0.00013972,2]
[332735246,1721494249239,-2797.22,0.00013972,2]
[332735248,1721494249250,-500.0,0.00013972,2]
[332735250,1721494249259,-500.0,0.00013972,2]
[332735252,1721494249269,-1000.36,0.00013972,2]
[332735254,1721494249279,-500.0,0.00013972,2]
[332735256,1721494249288,-5219.16,0.00013972,2]
[332735258,1721494249297,-585.32,0.00013972,2]
[332735259,1721494249307,-994.69,0.00013972,2]
[332735261,1721494249316,-3286.32,0.00013972,2]
[332735263,1721494249325,-500.0,0.00013972,2]
[332735265,1721494249335,-586.14,0.00013972,2]
[332735267,1721494249345,-500.0,0.00013972,2]
[332735269,1721494249355,-500.0,0.00013972,2]
[332735271,1721494249366,-513.99920471,0.00013972,2]
[332735273,1721494249376,-500.0,0.00013972,2]
[332735275,1721494249386,-548.82,0.00013972,2]
[332735277,1721494249396,-1538.07,0.00013972,2]
[332735279,1721494249406,-500.0,0.00013972,2]
[332735281,1721494249416,-400.0,0.00013972,2]
[332735283,1721494249426,-623.85,0.00013972,2]
[332735285,1721494249436,-974.25,0.00013972,2]
[332735287,1721494249445,-1038.89,0.00013972,2]
[332735289,1721494249455,-500.0,0.00013972,2]
[332735291,1721494249465,-520.9477985,0.00013972,2]
[332735293,1721494249475,-539.75121852,0.00013972,2]
[332735295,1721494249485,-500.0,0.00013972,2]
[332735297,1721494249496,-500.0,0.00013972,2]
[332735298,1721494249506,-500.0,0.00013972,2]
[332735300,1721494249515,-2333.02,0.00013972,2]
[332735302,1721494249525,-500.0,0.00013972,2]
[332735304,1721494249535,-543.13,0.00013972,2]
[332735306,1721494249544,-500.0,0.00013972,2]
[332735308,1721494249554,-548.42,0.00013972,2]
[332735310,1721494249565,-500.0,0.00013972,2]
[332735312,1721494249575,-640.75,0.00013972,2]
[332735314,1721494249584,-5284.01,0.00013972,2]
[332735316,1721494249594,-353.74643827,0.00013972,2]
[332735318,1721494249604,-11687.2,0.00013972,2]
[332735320,1721494249614,-2113.15,0.00013972,2]
[332735322,1721494249624,-500.0,0.00013972,2]
[332735324,1721494249634,-500.0,0.00013972,2]
[332735326,1721494249643,-245.08411045,0.00013972,2]
[332735328,1721494249654,-1398.9,0.00013972,2]
[332735330,1721494249664,-1168.06,0.00013972,2]
[332735332,1721494249673,-507.42940929,0.00013972,2]
[332735334,1721494249683,-500.0,0.00013972,2]
[332735336,1721494249693,-597.98,0.00013972,2]
[332735338,1721494249703,-500.0,0.00013972,2]
[332735340,1721494249713,-2862.36,0.00013972,2]
[332735342,1721494249723,-500.0,0.00013972,2]
[332735344,1721494249732,-3872.56,0.00013972,2]
[332735346,1721494249744,-500.0,0.00013972,2]
[332735348,1721494249753,-500.0,0.00013972,2]
[332735350,1721494249762,-500.0,0.00013972,2]
[332735352,1721494249772,-7364.15,0.00013972,2]
[332735354,1721494249781,-1370.79,0.00013972,2]
[332735356,1721494249791,-11532.39028249,0.00013972,2]
[332735385,1721494250066,-1058.862999,0.00013972,2]
[332735646,1721494252756,-500.0,0.00013698,2]
[332735648,1721494252766,-1006.55,0.00013698,2]
[332735650,1721494252776,-1006.55,0.00013698,2]
[332735652,1721494252786,-1006.55,0.00013698,2]
[332735654,1721494252796,-500.0,0.00013698,2]
[332735656,1721494252808,-500.0,0.00013698,2]
[332735658,1721494252818,-177.46447683,0.00013972,2]
[332735660,1721494252831,-5906.00224168,0.00013972,2]
[332735662,1721494252843,-500.0,0.00013972,2]
[332735664,1721494252853,-479.56575657,0.00013972,2]
[332735694,1721494253138,-337.17250418,0.00013698,2]
[332737274,1721494296060,2394.95459978,0.00014246,5]
[332737275,1721494314550,493.57135447,9.999e-05,2]
[332737276,1721494320340,273.37336231,9.9e-05,2]
[332737277,1721494329068,273.37336231,9.9e-05,2]
[332737278,1721494331559,524.30313402,9.999e-05,2]
[332737279,1721494337155,273.37336231,9.9e-05,2]
[332737280,1721494341142,150.112233,0.000145,5]
[332737281,1721494341414,150.112233,0.000144,5]
[332737282,1721494342550,150.112233,0.000142,5]
[332737283,1721494345332,273.37336231,9.9e-05,2]
[332737284,1721494355014,273.37336231,9.9e-05,2]
[332737285,1721494356834,155.54340879,9.999e-05,2]
[332737286,1721494364500,273.37336231,9.9e-05,2]
[332737287,1721494372696,273.37336231,9.9e-05,2]
[332737288,1721494381249,273.37336231,9.9e-05,2]
[332737289,1721494391161,273.37336231,9.9e-05,2]
[332737290,1721494399977,392.3203692,9.999e-05,2]
[332737291,1721494412541,4856.77864083,0.00013962,5]
[332737292,1721494432076,155.73708013,9.999e-05,2]
[332737293,1721494434546,372.89452671,9.999e-05,2]
[332737294,1721494436706,304.27809575,9.999e-05,2]
[332737295,1721494479679,201.97388125,9.999e-05,2]
[332737296,1721494481668,184.37300868,9.999e-05,2]
[332737297,1721494487233,391.29217394,9.999e-05,2]
[332737298,1721494490378,341.5888685,9.999e-05,2]
[332737299,1721494541254,273.37336231,9.9e-05,2]
[332737300,1721494549172,273.37336231,9.9e-05,2]
[332737301,1721494557421,273.37336231,9.9e-05,2]
[332737302,1721494565370,273.37336231,9.9e-05,2]
[332737303,1721494573759,273.37336231,9.9e-05,2]
[332737304,1721494582428,273.37336231,9.9e-05,2]
[332737305,1721494592583,273.37336231,9.9e-05,2]
[332737306,1721494601105,273.37336231,9.9e-05,2]
[332737307,1721494610092,273.37336231,9.9e-05,2]
[332737308,1721494617983,273.37336231,9.9e-05,2]
[332737309,1721494626141,273.37336231,9.9e-05,2]
[332737310,1721494634680,273.37336231,9.9e-05,2]
[332737311,1721494643706,273.37336231,9.9e-05,2]
[332737312,1721494651638,273.37336231,9.9e-05,2]
[332737313,1721494660512,273.37336231,9.9e-05,2]
[332737315,1721494665644,154.77557542,9.999e-05,2]
[332737316,1721494669225,273.37336231,9.9e-05,2]
[332737317,1721494677445,273.37336231,9.9e-05,2]
[332737318,1721494686083,273.37336231,9.9e-05,2]
[332737319,1721494695170,273.37336231,9.9e-05,2]
[332737320,1721494703153,273.37336231,9.9e-05,2]
[332737322,1721494767670,154.99716933,9.999e-05,2]
[332737324,1721494919990,531.54287942,0.000225,30]
[332737369,1721495432628,-300.0,0.00011617,2]
[332737371,1721495432639,-300.0,0.00011617,2]
[332737373,1721495432651,-2235.70352642,0.00011618,2]
[332737441,1721495438642,-11183.55362453,0.00011618,2]
[332737442,1721495438655,-323.81791502,0.00011618,2]
[332737443,1721495438666,-320.49631806,0.00011618,2]
[332737444,1721495438678,-10836.42861597,0.00011618,2]
[332737445,1721495438688,-155.68344481,0.00012,2]
[332737446,1721495438699,-250.0,0.0001221,2]
[332737447,1721495438708,-250.0,0.00012302,2]
[332737448,1721495438718,-250.0,0.00012336,2]
[332737449,1721495438729,-250.0,0.00012369,2]
[332737450,1721495438739,-250.0,0.00012403,2]
[332737451,1721495438748,-250.0,0.00012437,2]
[332737452,1721495438758,-250.0,0.00012471,2]
[332737453,1721495438767,-250.0,0.00012504,2]
[332737455,1721495438777,-250.0,0.00012538,2]
[332737456,1721495438787,-250.0,0.00012572,2]
[332737457,1721495438796,-250.0,0.00012605,2]
[332737458,1721495438805,-250.0,0.00012639,2]
[332737459,1721495438815,-250.0,0.00012673,2]
[332737460,1721495438824,-250.0,0.00012707,2]
[332737461,1721495438834,-250.0,0.0001274,2]
[332737462,1721495438843,-420.0,0.00012758,2]
[332737463,1721495438853,-250.0,0.00012774,2]
[332737464,1721495438863,-420.0,0.00012779,2]
[332737465,1721495438873,-250.0,0.00012808,2]
[332737466,1721495438882,-250.0,0.00012841,2]
[332737467,1721495438892,-250.0,0.00012875,2]
[332737468,1721495438900,-250.0,0.00012909,2]
[332737469,1721495438910,-250.0,0.00012943,2]
[332737470,1721495438919,-26893.81386747,0.00013598,2]
[332737471,1721495438929,-5804.08189594,0.00013687,2]
[332737472,1721495438939,-285818.002776,0.00013688,2]
[332737473,1721495438949,-230.44075946,0.00013698,2]
[332737474,1721495438958,-312.45758693,0.00013698,2]
[332737475,1721495438969,-204.43950239,0.00013698,2]
[332737476,1721495438979,-450.0,0.00013698,2]
[332737477,1721495438989,-586.57892446,0.00013698,2]
[332737478,1721495438999,-500.0,0.00013698,2]
[332737479,1721495439009,-524.73135772,0.00013698,2]
[332737480,1721495439019,-500.0,0.00013698,2]
[332737481,1721495439028,-500.0,0.00013698,2]
[332737482,1721495439036,-500.0,0.00013698,2]
[332737483,1721495439045,-501.43999562,0.00013698,2]
[332737484,1721495439054,-889.18,0.00013698,2]
[332737485,1721495439064,-500.0,0.00013698,2]
[332737486,1721495439073,-500.0,0.00013698,2]
[332737487,1721495439085,-500.0,0.00013698,2]
[332737488,1721495439095,-500.0,0.00013698,2]
[332737489,1721495439106,-579.75,0.00013698,2]
[332737490,1721495439117,-500.0,0.00013698,2]
[332737491,1721495439127,-500.0,0.00013698,2]
[332737492,1721495439136,-500.0,0.00013698,2]
[332737493,1721495439146,-213.5647246,0.00013698,2]
[332737494,1721495439156,-2574.86,0.00013698,2]
[332737495,1721495439167,-500.0,0.00013698,2]
[332737496,1721495439177,-500.0,0.00013698,2]
[332737497,1721495439186,-500.0,0.00013698,2]
[332737498,1721495439195,-500.0,0.00013698,2]
[332737499,1721495439204,-171.17220993,0.00013698,2]
[332737500,1721495439214,-500.0,0.00013698,2]
[332737501,1721495439223,-500.0,0.00013698,2]
[332737502,1721495439233,-500.0,0.00013698,2]
[332737503,1721495439242,-500.0,0.00013698,2]
[332737504,1721495439251,-500.0,0.00013698,2]
[332737505,1721495439260,-1060.88,0.00013698,2]
[332737506,1721495439269,-581.03636157,0.00013698,2]
[332737507,1721495439278,-500.0,0.00013698,2]
[332737508,1721495439288,-500.0,0.00013698,2]
[332737509,1721495439297,-500.0,0.00013698,2]
[332737510,1721495439307,-501.41673418,0.00013698,2]
[332737511,1721495439318,-500.0,0.00013698,2]